bitfinex/quotes_SOLUSD_20260302
["timestamp","ask_amount","ask_price","bid_price","bid_amount"]
[1772455147925,1.93841076,83.778,83.755,1.97852472]
[1772455148416,12.38072374,83.777,83.755,1.97852472]
[1772455149224,11.93659281,83.776,83.755,1.97852472]
[1772455149802,1.93841076,83.775,83.755,1.97852472]
[1772455150422,11.93687779,83.774,83.755,1.97852472]
[1772455151420,1.93841076,83.774,83.748,13.91899889]
[1772455151627,1.93841076,83.774,83.749,1.97852472]
[1772455151800,1.93841076,83.769,83.734,1.97852472]
[1772455152116,1.93841076,83.769,83.735,1.97852472]
[1772455152318,12.38072374,83.773,83.741,1.97852472]
[1772455154006,12.38072374,83.773,83.742,11.94143918]
[1772455154210,12.38072374,83.773,83.743,1.85183938]
[1772455158231,12.38072374,83.773,83.745,1.96280408]
[1772455158417,12.38072374,83.773,83.751,1.96280408]
[1772455159220,11.93716277,83.772,83.751,1.96280408]
[1772455160348,13.79912635,83.772,83.751,1.96280408]
[1772455162329,12.38072374,83.771,83.751,1.96280408]
[1772455164730,12.38072374,83.771,83.753,1.96280408]
[1772455166734,11.93744777,83.77,83.753,1.96280408]
[1772455167742,12.38072374,83.771,83.755,1.96280408]
[1772455169143,12.38072374,83.771,83.756,11.93944314]
[1772455169330,12.38072374,83.771,83.74,3.65069397]
[1772455169331,10.3514606,83.771,83.744,1.96280408]
[1772455170324,1.86196358,83.799,83.744,1.96280408]
[1772455170524,1.86196358,83.799,83.761,1.96280408]
[1772455170924,1.86196358,83.809,83.771,1.96280408]
[1772455171138,1.86196358,83.809,83.772,41.7800697]
[1772455171347,1.86196358,83.807,83.773,1.96280408]
[1772455174647,1.86196358,83.807,83.775,1.96280408]
[1772455175028,1.86196358,83.807,83.774,11.93687779]
[1772455175029,1.86196358,83.824,83.781,1.96280408]
[1772455175353,1.86196358,83.819,83.781,1.96280408]
[1772455177837,1.86196358,83.819,83.756,3.69383402]
[1772455177838,1.86196358,83.809,83.783,1.96280408]
[1772455178043,1.86196358,83.809,83.772,1.96280408]
[1772455180233,11.93203512,83.808,83.773,11.93702028]
[1772455180437,1.86196358,83.807,83.781,1.96280408]
[1772455181826,1.86196358,83.821,83.781,1.96280408]
[1772455182234,1.86196358,83.82,83.783,1.96280408]
[1772455182541,1.86196358,83.82,83.791,1.96280408]
[1772455183530,1.86196358,83.819,83.791,1.96280408]
[1772455184655,1.86196358,83.817,83.783,1.96280408]
[1772455185254,1.86196358,83.799,83.76,3.649411]
[1772455185461,1.86196358,83.799,83.761,1.96280408]
[1772455187338,1.86196358,83.799,83.745,41.7935399]
[1772455187339,1.88878074,83.789,83.763,1.96280408]
[1772455188254,1.88878074,83.788,83.762,1.9276493]
[1772455189742,11.93415714,83.794,83.764,1.9276493]
[1772455189955,13.82293788,83.794,83.764,1.9276493]
[1772455190145,1.88878074,83.793,83.764,1.9276493]
[1772455190357,3.649411,83.8,83.766,1.9276493]
[1772455190547,1.88878074,83.81,83.771,1.9276493]
[1772455191641,1.88878074,83.809,83.771,1.9276493]
[1772455192635,1.88878074,83.807,83.773,1.9276493]
[1772455194152,1.88878074,83.807,83.781,1.9276493]
[1772455194859,1.88878074,83.813,83.783,1.9276493]
[1772455199161,1.88878074,83.811,83.785,1.9276493]
[1772455200347,1.88878074,83.799,83.76,3.649411]
[1772455200545,1.88878074,83.789,83.759,1.9276493]
[1772455201149,1.88878074,83.789,83.76,1.9276493]
[1772455201363,1.88878074,83.789,83.761,1.9276493]
[1772455201672,1.88878074,83.799,83.761,1.9276493]
[1772455202457,1.88878074,83.799,83.759,11.93887453]
[1772455202458,1.88878074,83.789,83.759,11.93887453]
[1772455202644,1.88878074,83.789,83.76,1.9276493]
[1772455203365,1.88878074,83.787,83.761,11.93873043]
[1772455204348,1.88878074,83.787,83.762,1.9276493]
[1772455205163,3.649411,83.79,83.762,1.9276493]
[1772455205555,3.649411,83.8,83.763,11.93844537]
[1772455205859,3.649411,83.8,83.764,1.9276493]
[1772455206048,3.649411,83.79,83.764,1.9276493]
[1772455206967,1.88878074,83.787,83.764,1.9276493]
[1772455208273,1.88878074,83.785,83.758,1.9276493]
[1772455209151,11.93454369,83.791,83.761,1.9276493]
[1772455209755,11.93196323,83.809,83.781,1.9276493]
[1772455210672,11.93196323,83.809,83.783,1.9276493]
[1772455212073,1.88878074,83.799,83.772,1.9276493]
[1772455212571,1.88878074,83.797,83.773,13.86466958]
[1772455213469,1.88878074,83.797,83.774,2.00952793]
[1772455214167,2.0131377,83.803,83.774,2.00952793]
[1772455214351,2.0131377,83.818,83.781,2.00952793]
[1772455215159,11.9307539,83.817,83.783,2.00952793]
[1772455215869,2.0131377,83.816,83.783,2.00952793]
[1772455218175,1.8786055,83.814,83.785,2.04714271]
[1772455218661,1.8786055,83.809,83.772,2.04714271]
[1772455218863,1.8786055,83.799,83.758,2.04714271]
[1772455219159,1.8786055,83.789,83.758,2.04714271]
[1772455219566,3.649411,83.78,83.751,2.04714271]
[1772455219770,1.8786055,83.779,83.751,2.04714271]
[1772455221292,11.935563,83.784,83.751,2.04714271]
[1772455221470,1.8786055,83.783,83.753,2.04714271]
[1772455223285,1.8786055,83.781,83.753,2.04714271]
[1772455223466,1.8786055,83.781,83.755,2.04714271]
[1772455225195,1.8786055,83.8,83.761,2.04714271]
[1772455225374,1.8786055,83.797,83.761,2.04714271]
[1772455225780,1.8786055,83.789,83.761,2.04714271]
[1772455227580,29.83329156,83.799,83.737,134.25515828]
[1772455227581,1.8786055,83.805,83.77,3.649411]
[1772455227788,11.93260464,83.804,83.771,2.04714271]
[1772455227968,13.81121014,83.804,83.771,2.04714271]
[1772455228589,3.649411,83.8,83.763,2.04714271]
[1772455228891,1.8786055,83.789,83.758,2.04714271]
[1772455231586,11.93488327,83.788,83.761,2.04714271]
[1772455235385,3.649411,83.8,83.723,95.5525306]
[1772455235386,1.8786055,83.811,83.771,2.04714271]
[1772455235589,1.8786055,83.809,83.762,41.78505765]
[1772455235794,1.8786055,83.789,83.753,2.04714271]
[1772455235983,1.8786055,83.789,83.761,2.04714271]
[1772455237399,1.8786055,83.788,83.763,2.04714271]
[1772455239497,1.8786055,83.788,83.765,2.04714271]
[1772455239881,11.93502571,83.787,83.765,2.04714271]
[1772455241802,1.8786055,83.786,83.765,2.04714271]
[1772455242405,1.8786055,83.786,83.751,2.04714271]
[1772455242618,1.8786055,83.786,83.752,2.04714271]
[1772455243201,1.8786055,83.784,83.754,2.04714271]
[1772455244293,1.8786055,83.784,83.753,11.93987081]
[1772455244294,1.8786055,83.784,83.761,2.04714271]
[1772455245202,1.8786055,83.79,83.763,2.04714271]
[1772455247795,2.08657666,83.788,83.763,2.04714271]
[1772455248610,2.08657666,83.788,83.755,1.91743022]
[1772455250028,2.08657666,83.786,83.757,1.91743022]
[1772455252305,2.08657666,83.786,83.714,95.56293551]
[1772455252306,2.08657666,83.784,83.744,1.91743022]
[1772455252510,2.08657666,83.784,83.751,1.91743022]
[1772455253026,2.08657666,83.806,83.771,1.91743022]
[1772455255006,11.93240177,83.806,83.781,1.91743022]
[1772455256021,2.3708998,83.829,83.791,1.91743022]
[1772455256817,2.08657666,83.828,83.791,1.91743022]
[1772455257326,2.08657666,83.826,83.793,1.91743022]
[1772455259518,2.08657666,83.824,83.793,1.91743022]
[1772455260019,2.08657666,83.819,83.791,1.91743022]
[1772455261943,11.93061156,83.818,83.793,1.91743022]
[1772455262933,2.08657666,83.817,83.793,1.91743022]
[1772455264538,2.08657666,83.817,83.795,1.91743022]
[1772455265236,2.08657666,83.815,83.787,1.91743022]
[1772455265451,2.08657666,83.815,83.791,1.91743022]
[1772455267729,2.08657666,83.815,83.766,3.69383402]
[1772455267730,2.08657666,83.809,83.777,1.91743022]
[1772455269038,2.08657666,83.799,83.761,1.91743022]
[1772455269758,2.08657666,83.797,83.763,1.91743022]
[1772455273934,2.07287591,83.795,83.765,2.03519268]
[1772455276063,2.07287591,83.793,83.765,2.03519268]
[1772455276442,2.07287591,83.793,83.766,13.97321049]
[1772455276655,104.5,83.878,83.78,3.6508282]
[1772455276656,2.07287591,83.829,83.78,3.6508282]
[1772455276959,2.07287591,83.809,83.776,2.03519268]
[1772455278154,2.05451233,83.807,83.778,2.01635563]
[1772455280043,2.05451233,83.807,83.75,3.6508282]
[1772455280044,3.6508282,83.82,83.781,2.01635563]
[1772455280247,2.05451233,83.819,83.781,2.01635563]
[1772455280568,2.05451233,83.819,83.791,2.01635563]
[1772455280759,3.49,85.076,83.801,2.01635563]
[1772455280760,2.05451233,83.838,83.801,2.01635563]
[1772455282960,2.05451233,83.836,83.803,2.01635563]
[1772455284451,2.05451233,83.829,83.797,11.93351828]
[1772455284750,2.05451233,83.819,83.789,2.01635563]
[1772455284955,2.05451233,83.809,83.777,2.01635563]
[1772455285264,2.05451233,83.807,83.778,11.93630786]
[1772455289073,2.05451233,83.805,83.778,2.01635563]
[1772455290070,2.05451233,83.805,83.779,11.93616538]
[1772455290376,2.05451233,83.803,83.78,2.01635563]
[1772455290869,2.05451233,83.803,83.781,2.01635563]
[1772455291270,2.05451233,83.803,83.779,13.95252101]
[1772455291447,2.05451233,83.803,83.78,2.01635563]
[1772455291654,2.05451233,83.803,83.779,11.93616538]
[1772455293160,11.93288942,83.802,83.773,11.93702028]
[1772455293345,2.05451233,83.801,83.773,11.93702028]
[1772455293547,2.05451233,83.801,83.773,13.95337591]
[1772455293974,2.05451233,83.801,83.774,2.01635563]
[1772455298565,2.05451233,83.799,83.776,2.01635563]
[1772455298874,2.05451233,83.799,83.771,2.01635563]
[1772455299073,2.05451233,83.799,83.766,11.93797786]
[1772455299564,2.05451233,83.799,83.767,2.01635563]
[1772455300862,2.05451233,83.799,83.769,2.01635563]
[1772455301777,2.05451233,83.797,83.769,2.01635563]
[1772455302473,59.64358772,83.832,83.768,11.93773278]
[1772455302474,2.05451233,83.81,83.781,2.01635563]
[1772455302671,2.05451233,83.809,83.781,2.01635563]
[1772455304274,2.05451233,83.815,83.783,2.01635563]
[1772455306268,2.05451233,83.815,83.791,2.01635563]
[1772455307281,2.0070267,83.82,83.791,2.01635563]
[1772455307676,5.65670213,83.82,83.791,2.01635563]
[1772455307882,2.0070267,83.819,83.791,2.01635563]
[1772455308261,2.0070267,83.817,83.78,15.58568633]
[1772455308461,2.0070267,83.809,83.78,11.9360109]
[1772455308662,2.0070267,83.809,83.75,3.64967543]
[1772455308663,2.0070267,83.799,83.756,2.09170576]
[1772455308980,2.0070267,83.789,83.76,2.09170576]
[1772455309573,2.0070267,83.779,83.748,11.94054677]
[1772455310870,2.0070267,83.779,83.709,2.09170576]
[1772455311064,2.0070267,83.779,83.691,47.79458335]
[1772455311065,2.0070267,83.749,83.71,3.64967543]
[1772455311264,2.0070267,83.749,83.711,2.09170576]
[1772455311566,2.0070267,83.749,83.721,2.09170576]
[1772455312380,0.28432314,83.769,83.731,2.09170576]
[1772455313085,11.93773278,83.768,83.731,2.09170576]
[1772455313888,3.64967543,83.76,83.731,2.09170576]
[1772455314387,11.9390155,83.759,83.731,2.09170576]
[1772455314683,0.40781825,83.769,83.733,2.09170576]
[1772455316285,0.41218704,83.767,83.735,2.09170576]
[1772455318495,0.41218704,83.767,83.734,11.94258007]
[1772455318496,0.41640925,83.777,83.741,2.09170576]
[1772455318968,0.41849375,83.769,83.741,2.09170576]
[1772455319797,0.41849375,83.759,83.735,2.09170576]
[1772455320989,0.41849375,83.759,83.737,2.09170576]
[1772455322290,0.42458953,83.757,83.73,17.68440511]
[1772455322592,0.42458953,83.757,83.73,11.94302392]
[1772455322779,0.42458953,83.757,83.731,2.09170576]
[1772455322973,3.64967543,83.77,83.73,11.94302392]
[1772455322974,0.42658227,83.765,83.733,2.09170576]
[1772455323291,3.64967543,83.77,83.733,2.09170576]
[1772455323485,0.42658227,83.789,83.751,2.09170576]
[1772455324981,12.3613231,83.789,83.752,11.94001337]
[1772455325174,12.3613231,83.789,83.753,2.09170576]
[1772455325377,0.43047037,83.788,83.753,2.09170576]
[1772455326494,11.93474083,83.789,83.753,2.09170576]
[1772455326690,11.93474083,83.789,83.761,2.09170576]
[1772455327085,0.43430669,83.798,83.763,2.09170576]
[1772455329397,0.43430669,83.798,83.771,2.09170576]
[1772455329894,0.43983082,83.796,83.771,2.09170576]
[1772455331393,0.43983082,83.796,83.773,2.09170576]
[1772455331604,12.37210249,83.819,83.781,2.09170576]
[1772455332108,0.44340767,83.818,83.781,2.09170576]
[1772455333881,0.44864235,83.809,83.778,11.9362443]
[1772455334186,0.44864235,83.799,83.761,1.97421813]
[1772455335899,0.45033564,83.797,83.763,1.97421813]
[1772455336101,0.45200851,83.789,83.757,11.939191]
[1772455336495,0.45200851,83.779,83.756,1.97421813]
[1772455336800,0.45200851,83.779,83.749,1.97421813]
[1772455337801,0.45200851,83.779,83.742,2.02436081]
[1772455338002,3.64967543,83.78,83.744,2.02436081]
[1772455338003,0.45697826,83.777,83.744,2.02436081]
[1772455341602,11.93630493,83.779,83.751,2.02436081]
[1772455341805,11.93630493,83.779,83.745,11.9410114]
[1772455341806,0.46179691,83.793,83.761,2.02436081]
[1772455342111,3.64967543,83.79,83.761,2.02436081]
[1772455343102,3.64967543,83.79,83.726,3.69383402]
[1772455343103,11.9337477,83.796,83.763,2.02436081]
[1772455345599,0.46488049,83.799,83.771,2.02436081]
[1772455345801,11.93314306,83.801,83.771,2.02436081]
[1772455346710,0.4694047,83.8,83.771,2.02436081]
[1772455347910,0.47086032,83.798,83.771,2.02436081]
[1772455348707,0.47086032,83.798,83.764,2.02436081]
[1772455350200,11.93360144,83.797,83.764,2.02436081]
[1772455350708,0.47514643,83.796,83.764,2.02436081]
[1772455351312,0.47514643,83.796,83.766,2.02436081]
[1772455353104,3.64967543,83.8,83.768,2.02436081]
[1772455353105,0.47932808,83.794,83.768,2.02436081]
[1772455356215,11.93417111,83.793,83.77,2.02436081]
[1772455357713,11.93417111,83.793,83.728,104.4]
[1772455357714,3.64967543,83.79,83.728,104.4]
[1772455357914,3.64967543,83.76,83.73,2.02436081]
[1772455358116,41.7710944,83.79,83.741,2.02436081]
[1772455358318,0.48590944,83.778,83.741,2.02436081]
[1772455360294,0.48845183,83.776,83.741,2.02436081]
[1772455360696,0.48845183,83.769,83.741,2.02436081]
[1772455363710,0.48845183,83.769,83.742,11.94143918]
[1772455363913,12.41174353,83.774,83.743,2.02436081]
[1772455364315,4.12716625,83.77,83.743,2.02436081]
[1772455364501,0.47486574,83.769,83.743,2.02436081]
[1772455366403,0.46828516,83.767,83.743,2.02436081]
[1772455366833,0.46828516,83.767,83.731,2.02436081]
[1772455367031,0.46505687,83.749,83.723,2.02436081]
[1772455367816,0.46505687,83.749,83.711,1.99449324]
[1772455368212,0.4587127,83.747,83.711,1.99449324]
[1772455368419,0.4587127,83.739,83.711,1.99449324]
[1772455369050,3.65230051,83.72,83.702,1.99449324]
[1772455369338,0.73992548,83.729,83.692,1.99449324]
[1772455370235,11.94343588,83.728,83.692,1.99449324]
[1772455370833,42.2545822,83.728,83.692,1.99449324]
[1772455371446,0.44951306,83.727,83.692,1.99449324]
[1772455372622,0.44652918,83.761,83.721,1.99449324]
[1772455372823,3.65230051,83.76,83.721,1.99449324]
[1772455373034,0.44652918,83.761,83.731,1.99449324]
[1772455373527,3.65230051,83.76,83.731,1.99449324]
[1772455373922,4.09584645,83.76,83.731,1.99449324]
[1772455374628,41.78655427,83.759,83.731,1.99449324]
[1772455374942,0.44059347,83.758,83.731,1.99449324]
[1772455377058,0.43194552,83.756,83.731,1.99449324]
[1772455378543,2.07833543,83.749,83.71,3.65230051]
[1772455379056,2.07833543,83.747,83.71,15.59824937]
[1772455379530,2.35618235,83.87,83.71,11.94594886]
[1772455379845,0.2,83.87,83.827,6.19189586]
[1772455380046,3.65230051,83.86,83.827,6.19189586]
[1772455380425,3.65230051,83.85,83.827,1.31324473]
[1772455381731,2.07833543,83.849,83.827,1.31324473]
[1772455382444,9.31069342,83.87,83.831,1.99449324]
[1772455382648,9.11069342,83.85,83.827,1.11324473]
[1772455382959,2.07833543,83.839,83.827,1.11324473]
[1772455383141,2.07833543,83.839,83.791,1.99449324]
[1772455383345,2.07833543,83.839,83.8,9.11069342]
[1772455383758,2.07833543,83.837,83.801,13.92752506]
[1772455383939,2.07833543,83.837,83.802,1.99449324]
[1772455384746,2.07833543,83.837,83.81,9.11069342]
[1772455384947,2.07833543,83.837,83.803,1.99449324]
[1772455385736,2.07833543,83.829,83.795,11.93381521]
[1772455385940,2.07833543,83.819,83.787,25.25587603]
[1772455386167,2.07833543,83.819,83.786,1.99449324]
[1772455386551,2.07833543,83.819,83.786,13.92953253]
[1772455387161,2.07833543,83.809,83.772,11.93703155]
[1772455387359,2.07833543,83.799,83.766,11.93792636]
[1772455387749,2.07833543,83.797,83.761,11.93873043]
[1772455388758,2.07833543,83.789,83.76,1.99449324]
[1772455389069,2.07833543,83.789,83.76,11.10518666]
[1772455390247,14.01314044,83.789,83.761,11.93873043]
[1772455390651,2.07833543,83.788,83.761,11.93873043]
[1772455391850,2.07833543,83.788,83.762,1.99449324]
[1772455392970,2.07833543,83.788,83.763,11.93844537]
[1772455394070,2.17020938,83.786,83.762,1.99449324]
[1772455394266,2.17020938,83.786,83.754,2.11755668]
[1772455394485,2.17020938,83.779,83.746,39.31423768]
[1772455394661,2.17020938,83.779,83.746,14.05836165]
[1772455394850,2.17020938,83.769,83.734,2.11755668]
[1772455395645,2.17020938,83.769,83.73,9.11069342]
[1772455396150,2.17020938,83.769,83.741,2.11755668]
[1772455396571,14.10790038,83.769,83.741,2.11755668]
[1772455396774,2.17020938,83.768,83.741,2.11755668]
[1772455401276,11.93787529,83.767,83.741,2.11755668]
[1772455401475,2.18108597,83.759,83.722,1.98681421]
[1772455404378,2.18108597,83.757,83.723,13.93096336]
[1772455404585,2.18108597,83.778,83.741,1.98681421]
[1772455406185,2.18108597,83.776,83.742,1.98681421]
[1772455407279,2.18108597,83.776,83.75,9.1342246]
[1772455407485,2.18108597,83.776,83.75,11.12103881]
[1772455408179,11.9367353,83.775,83.75,11.12103881]
[1772455408380,2.18108597,83.774,83.75,1.98681421]
[1772455408587,2.18108597,83.774,83.751,11.94015593]
[1772455408786,2.18108597,83.774,83.75,1.98681421]
[1772455409766,2.18108597,83.774,83.75,13.92709602]
[1772455409995,2.18108597,83.774,83.751,1.98681421]
[1772455410569,2.18108597,83.772,83.74,11.12103881]
[1772455412176,2.18108597,83.77,83.741,11.94158178]
[1772455412569,2.18108597,83.77,83.741,13.92839599]
[1772455412771,2.18108597,83.779,83.742,1.98681421]
[1772455412972,2.18108597,83.779,83.751,1.98681421]
[1772455413488,2.18108597,83.778,83.751,1.98681421]
[1772455413791,2.18108597,83.778,83.742,1.98681421]
[1772455416389,2.18108597,83.776,83.743,11.94129658]
[1772455416576,2.18108597,83.776,83.744,1.98681421]
[1772455418473,11.9367353,83.775,83.744,1.98681421]
[1772455418784,2.18108597,83.774,83.744,1.98681421]
[1772455419179,2.18108597,83.774,83.746,1.98681421]
[1772455421589,2.18108597,83.772,83.747,11.94072623]
[1772455421987,2.18108597,83.772,83.747,13.92754044]
[1772455422187,2.18108597,83.772,83.743,1.98681421]
[1772455423403,2.18108597,83.77,83.736,1.98681421]
[1772455423598,2.18108597,83.769,83.73,1.98681421]
[1772455423899,2.18108597,83.769,83.731,1.98681421]
[1772455426281,2.18108597,83.767,83.74,11.11714379]
[1772455426477,2.18108597,83.767,83.74,5.63948696]
[1772455426683,2.18108597,83.767,83.741,1.98681421]
[1772455426889,2.46540911,83.806,83.751,1.98681421]
[1772455427089,2.18108597,83.789,83.751,1.98681421]
[1772455428302,2.11528207,83.787,83.752,2.20613506]
[1772455429588,2.11528207,83.785,83.761,2.20613506]
[1772455431505,2.11528207,83.783,83.761,2.20613506]
[1772455431805,2.11528207,83.783,83.762,2.20613506]
[1772455431986,2.11528207,83.783,83.756,2.20613506]
[1772455432181,2.11528207,83.829,83.771,2.20613506]
[1772455432387,2.11528207,83.829,83.781,2.20613506]
[1772455432586,15.58157648,83.83,83.781,2.20613506]
[1772455432587,2.11528207,83.825,83.781,2.20613506]
[1772455432900,2.11528207,83.819,83.781,2.20613506]
[1772455433107,2.11528207,83.819,83.79,5.85880781]
[1772455433400,2.11528207,83.817,83.791,2.20613506]
[1772455433901,2.18115871,83.809,83.77,3.65267275]
[1772455435184,2.18115871,83.807,83.77,3.65267275]
[1772455435987,2.18115871,83.807,83.771,11.93730527]
[1772455436208,2.18115871,83.807,83.77,3.65267275]
[1772455437101,2.18115871,83.799,83.76,3.65267275]
[1772455437310,2.18115871,83.797,83.76,3.65267275]
[1772455437820,2.18115871,83.789,83.75,3.65267275]
[1772455437988,2.18115871,83.789,83.751,11.94015593]
[1772455440186,2.18115871,83.789,83.73,3.69383402]
[1772455440187,2.18115871,83.779,83.74,3.65267275]
[1772455440405,2.18115871,83.779,83.741,0.11193256]
[1772455440604,2.18115871,83.779,83.75,3.65267275]
[1772455440811,2.18115871,83.779,83.741,0.11193256]
[1772455441713,2.18115871,83.769,83.735,0.11352289]
[1772455441916,2.18115871,83.769,83.734,0.11509496]
[1772455444091,11.93773278,83.768,83.734,0.11509496]
[1772455444403,2.18115871,83.767,83.734,0.11509496]
[1772455444795,2.18115871,83.767,83.733,11.94267952]
[1772455446000,2.18115871,83.767,83.73,3.65267275]
[1772455446325,2.18115871,83.772,83.741,0.12120473]
[1772455446616,2.18115871,83.777,83.751,0.12120473]
[1772455446821,2.18115871,83.777,83.75,3.65267275]
[1772455447417,2.18115871,83.777,83.741,0.12268856]
[1772455449014,2.18115871,83.775,83.741,0.12268856]
[1772455450145,11.93687779,83.774,83.741,12.06427034]
[1772455450326,2.18115871,83.773,83.741,12.06427034]
[1772455450526,2.18115871,83.773,83.742,0.12703859]
[1772455451165,2.18115871,83.779,83.751,0.12845542]
[1772455451442,11.93605848,83.78,83.751,0.12845542]
[1772455451845,14.11721719,83.78,83.751,0.12845542]
[1772455452247,14.11721719,83.78,83.751,12.06861135]
[1772455452440,14.11721719,83.78,83.752,0.12985597]
[1772455453549,2.18115871,83.779,83.752,0.12985597]
[1772455453846,2.18115871,83.798,83.752,0.12985597]
[1772455454045,2.18115871,83.798,83.751,11.94015593]
[1772455454046,2.18115871,83.798,83.761,0.13396185]
[1772455456049,2.18115871,83.798,83.76,3.65267275]
[1772455456050,41.76760504,83.797,83.76,3.65267275]
[1772455456236,2.18115871,83.796,83.76,3.65267275]
[1772455457739,2.20395377,83.794,83.76,3.79189237]
[1772455458555,2.20395377,83.794,83.76,0.13921962]
[1772455458927,11.93417111,83.793,83.76,3.79189237]
[1772455459147,2.20395377,83.792,83.761,11.93873043]
[1772455459731,2.20395377,83.792,83.762,0.14175878]
[1772455461340,11.93445596,83.791,83.762,0.14175878]
[1772455461553,2.20395377,83.79,83.762,0.14175878]
[1772455462050,2.20395377,83.789,83.75,3.65267275]
[1772455464431,2.20395377,83.787,83.751,11.94015593]
[1772455464635,2.20395377,83.787,83.752,0.14785586]
[1772455467256,11.93516816,83.786,83.752,0.14785586]
[1772455467444,2.20395377,83.785,83.752,0.14785586]
[1772455470245,2.20395377,83.783,83.752,0.14785586]
[1772455472640,3.65267275,83.78,83.741,0.15690744]
[1772455472838,3.65267275,83.78,83.731,41.80052787]
[1772455472839,2.20395377,83.779,83.736,0.15690744]
[1772455473165,2.20395377,83.769,83.732,0.1579812]
[1772455475043,2.20395377,83.767,83.732,0.1579812]
[1772455475674,2.20395377,83.767,83.741,0.16009185]
[1772455478366,63.31887563,83.8,83.742,0.16316778]
[1772455478367,2.20395377,83.765,83.742,0.16316778]
[1772455480679,2.20395377,83.763,83.742,0.16316778]
[1772455481362,2.20395377,83.763,83.737,11.94210145]
[1772455482773,2.20395377,83.761,83.74,3.65260749]
[1772455483365,2.20395377,83.761,83.74,3.82067075]
[1772455483875,2.20395377,83.766,83.741,0.16806326]
[1772455486179,2.20395377,83.774,83.743,0.17086766]
[1772455486376,2.20395377,83.774,83.751,0.17086766]
[1772455487291,2.20395377,83.774,83.746,0.17178107]
[1772455487994,2.20395377,83.774,83.743,0.17357653]
[1772455488301,2.20089625,83.772,83.738,11.94200141]
[1772455488473,2.20089625,83.769,83.738,11.94200141]
[1772455488796,2.20089625,83.804,83.741,0.17357653]
[1772455488971,2.20089625,83.779,83.741,0.17357653]
[1772455491596,2.20089625,83.777,83.742,11.94143918]
[1772455492792,2.20089625,83.777,83.742,12.11848454]
[1772455493773,2.20089625,83.777,83.742,11.94143918]
[1772455493980,2.20089625,83.799,83.751,0.17872059]
[1772455494399,2.20089625,83.789,83.751,0.17872059]
[1772455495198,2.20089625,83.787,83.752,11.94001337]
[1772455495895,2.20089625,83.787,83.753,0.1795438]
[1772455497305,2.20089625,83.785,83.754,11.93972825]
[1772455499300,2.20089625,83.784,83.755,0.18274316]
[1772455501395,2.20089625,83.782,83.75,15.77714432]
[1772455501595,2.20089625,83.782,83.751,0.18428825]
[1772455502311,2.20089625,83.78,83.753,0.1850475]
[1772455503491,2.20089625,83.78,83.714,47.78128199]
[1772455503492,2.20089625,83.769,83.731,29.85741908]
[1772455503721,2.20089625,83.769,83.727,0.18579804]
[1772455504010,2.20089625,83.769,83.731,0.18653996]
[1772455504590,2.20089625,83.759,83.73,11.94303659]
[1772455504785,2.20089625,83.759,83.73,15.59564408]
[1772455505403,2.20089625,83.759,83.73,15.78291744]
[1772455505784,2.20089625,83.759,83.731,0.18727336]
[1772455506208,2.20089625,83.779,83.741,0.18799833]
[1772455506409,2.20089625,83.778,83.741,0.18799833]
[1772455506607,3.65260749,83.78,83.743,0.18799833]
[1772455506608,2.20089625,83.776,83.743,0.18799833]
[1772455506929,2.20089625,83.769,83.731,0.18871497]
[1772455508091,2.20089625,83.769,83.73,3.65260749]
[1772455508907,2.20089625,83.759,83.724,11.94400649]
[1772455511603,2.20089625,83.757,83.73,3.65260749]
[1772455513511,2.20089625,83.757,83.725,0.19350623]
[1772455514213,2.18115871,83.755,83.726,11.94372118]
[1772455515692,2.18115871,83.753,83.73,3.65260749]
[1772455515894,2.18115871,83.759,83.74,3.65260749]
[1772455516119,2.18115871,83.759,83.73,3.65260749]
[1772455516618,2.18115871,83.759,83.721,41.80552071]
[1772455516909,2.18115871,83.759,83.722,0.19544395]
[1772455518005,2.25136522,83.757,83.723,11.94414915]
[1772455520305,2.25136522,83.755,83.723,11.94414915]
[1772455521318,2.25136522,83.753,83.724,0.19912361]
[1772455523512,2.25136522,83.751,83.725,11.94386383]
[1772455524114,2.25136522,83.751,83.725,12.14473381]
[1772455528626,2.25136522,83.751,83.726,0.20310628]
[1772455532425,2.25136522,83.749,83.727,11.94357853]
[1772455533439,2.25136522,83.749,83.727,0.20576019]
[1772455535931,2.25136522,83.749,83.723,11.94414915]
[1772455536144,2.25136522,83.729,83.7,1e-08]
[1772455536310,2.25136522,83.709,83.683,0.20728049]
[1772455536511,2.25136522,83.709,83.68,0.1]
[1772455536512,2.25136522,83.699,83.68,0.1]
[1772455537214,2.25136522,83.699,83.67,0.1]
[1772455537421,2.25136522,83.699,83.671,0.20777566]
[1772455537932,2.25136522,83.697,83.671,0.20777566]
[1772455538231,2.25136522,83.697,83.672,11.95142939]
[1772455538915,2.25136522,83.697,83.671,0.20777566]
[1772455539630,2.25136522,83.697,83.673,0.20874901]
[1772455539928,2.25136522,83.697,83.67,0.1]
[1772455540111,2.25136522,83.695,83.671,0.20922731]
[1772455540312,2.25136522,83.689,83.67,0.1]
[1772455540610,3.65260749,83.7,83.671,0.20922731]
[1772455540611,2.25136522,83.699,83.671,0.20922731]
[1772455541736,2.25136522,83.708,83.671,0.20922731]
[1772455542610,2.25136522,83.708,83.673,0.2101675]
[1772455543829,2.25136522,83.706,83.673,0.2101675]